fUSD/lending_fUSD_20240805
["ID","MTS","AMOUNT","RATE_DAILY","PERIOD"]
[334259456,1722873040202,-339.84500929,0.00012324,2]
[334259459,1722873040219,-48.37499071,0.00012324,2]
[334259461,1722873040229,-1000.0,0.00012329,2]
[334259463,1722873040239,-719.34566812,0.00012581,2]
[334259465,1722873040248,-686.40870172,0.00012613,2]
[334259467,1722873040258,-456.04,0.00012627,2]
[334259469,1722873040268,-304.0,0.00012657,2]
[334259471,1722873040278,-649.29247659,0.00012665,2]
[334259473,1722873040288,-461.66419608,0.00012666,2]
[334259475,1722873040297,-243.04057273,0.00012681,2]
[334259477,1722873040307,-3118.97189145,0.00012681,2]
[334259479,1722873040318,-270.32721242,0.00012696,2]
[334259480,1722873040331,-10527.99021344,0.00012749,2]
[334259481,1722873040341,-155.0,0.00012818,2]
[334259482,1722873040353,-200.0,0.00012847,2]
[334259483,1722873040363,-3402.25151975,0.00012855,2]
[334259484,1722873040374,-375.19819102,0.00012883,2]
[334259485,1722873040383,-347.45998025,0.00012924,2]
[334259486,1722873040392,-248.33722146,0.00012924,2]
[334259487,1722873040403,-309.09396936,0.00012928,2]
[334259488,1722873040412,-197.00575452,0.00012928,2]
[334259489,1722873040422,-155.0,0.00012928,2]
[334259490,1722873040432,-259.66752911,0.00012995,2]
[334259491,1722873040442,-155.0,0.00012995,2]
[334259492,1722873040453,-3787.01466138,0.00013,15]
[334259493,1722873040462,-600.0,0.00013,2]
[334259494,1722873040472,-231.82409563,0.00013125,2]
[334259495,1722873040483,-381.94548023,0.00013165,2]
[334259496,1722873040492,-676.2827,0.00013183,2]
[334259497,1722873040502,-452.62114795,0.00013378,2]
[334259498,1722873040515,-4947.86583262,0.00013378,2]
[334259500,1722873040524,-174.248,0.00013378,2]
[334259502,1722873040533,-4474.21822567,0.00013483,2]
[334259504,1722873040543,-4474.21822567,0.00013483,2]
[334259506,1722873040553,-165.38,0.000135,2]
[334259508,1722873040562,-1297.45235074,0.0001351,2]
[334259510,1722873040575,-1138.37465577,0.00013579,2]
[334259512,1722873040584,-1138.37465577,0.00013579,2]
[334259514,1722873040594,-541.6496,0.0001359,2]
[334259516,1722873040606,-170.25455804,0.0001369,2]
[334259518,1722873040615,-66308.9140979,0.0001369,2]
[334259521,1722873040631,-36220.7149021,0.0001369,2]
[334259523,1722873040641,-2500.0,0.0001369,2]
[334259525,1722873040650,-181.84,0.00013699,2]
[334259527,1722873040659,-2751.0,0.00013699,2]
[334259529,1722873040669,-857.70204154,0.00013699,2]
[334259531,1722873040679,-15473.55356065,0.0001372,2]
[334259533,1722873040689,-100000.0,0.0001379,2]
[334259534,1722873040698,-1000.0,0.0001379,2]
[334259536,1722873040707,-66684.5326,0.0001379,2]
[334259538,1722873040717,-12383.0055,0.0001379,2]
[334259540,1722873040726,-3080.259936,0.00013799,2]
[334259542,1722873040735,-7500.0,0.000138,2]
[334259544,1722873040745,-1000.0,0.00013865,2]
[334259546,1722873040755,-680.44952,0.0001388,2]
[334259548,1722873040764,-1000.0,0.00013889,2]
[334259550,1722873040774,-500.0,0.00013889,2]
[334259552,1722873040784,-158.39,0.00013973,2]
[334259554,1722873040793,-259.03,0.00013973,2]
[334259556,1722873040803,-154.17,0.00013973,2]
[334259558,1722873040812,-166.92,0.00013973,2]
[334259560,1722873040826,-174.248,0.0001408,2]
[334259562,1722873040835,-304.0,0.00014239,2]
[334259564,1722873040844,-522.48038729,0.00014496,2]
[334259566,1722873040853,-4792.31231654,0.00014496,2]
[334259568,1722873040865,-813.01697666,0.000146,2]
[334259570,1722873040874,-456.04,0.00014891,2]
[334259572,1722873040884,-8721.50531382,0.00015,7]
[334259574,1722873040893,-1184.9773959,0.00015,10]
[334259611,1722873041262,-270.54849223,0.00015,14]
[334259613,1722873041272,-155.0,0.00015,2]
[334259615,1722873041282,-650.0,0.00015,2]
[334259617,1722873041291,-1000.0,0.00015405,2]
[334259619,1722873041300,-289.0,0.00015604,2]
[334259620,1722873041309,-304.0,0.00015821,2]
[334259622,1722873041319,-594.69883351,0.00015912,2]
[334259624,1722873041330,-155.0,0.00015912,2]
[334259626,1722873041339,-385.2739001,0.00015912,2]
[334259628,1722873041352,-623.79178954,0.00015912,2]
[334259630,1722873041361,-484.89111714,0.00015912,2]
[334259632,1722873041370,-493.05421787,0.00015912,2]
[334259634,1722873041379,-12059.9647216,0.00015989,3]
[334259636,1722873041388,-25004.1560878,0.00015999,2]
[334259638,1722873041398,-1000.0,0.00016,2]
[334259640,1722873041408,-2144.62791432,0.00016033,2]
[334259642,1722873041417,-12059.9647216,0.00016122,3]
[334259644,1722873041427,-340.79023826,0.00016132,4]
[334259646,1722873041437,-512.00468047,0.00016132,2]
[334259648,1722873041447,-22084.83947671,0.00016132,2]
[334259649,1722873041457,-155.0,0.00016159,2]
[334259651,1722873041466,-155.0,0.00016232,2]
[334259653,1722873041477,-155.0,0.00016232,2]
[334259655,1722873041486,-210.93263361,0.00016232,2]
[334259657,1722873041497,-358.90191552,0.00016232,2]
[334259659,1722873041507,-181.65187256,0.00016232,2]
[334259661,1722873041517,-155.0,0.00016232,2]
[334259663,1722873041526,-155.0,0.00016232,2]
[334259665,1722873041535,-151.11,0.00016338,2]
[334259667,1722873041545,-6029.98236081,0.00016348,3]
[334259669,1722873041554,-297.29865721,0.00016358,2]
[334259671,1722873041563,-236.19407815,0.00016358,2]
[334259673,1722873041575,-1176.15950994,0.00016358,2]
[334259675,1722873041585,-680.44951,0.0001638,2]
[334259677,1722873041597,-155.0,0.00016425,2]
[334259679,1722873041606,-155.0,0.00016441,2]
[334259681,1722873041616,-1184.26383039,0.00016441,2]
[334259683,1722873041625,-519.81232661,0.00016441,2]
[334259685,1722873041635,-165.40738318,0.00016441,2]
[334259687,1722873041644,-1184.26383039,0.00016441,2]
[334259689,1722873041653,-155.0,0.00016441,2]
[334259691,1722873041664,-6029.98236081,0.00016455,3]
[334259693,1722873041673,-10000.0,0.00016465,2]
[334259695,1722873041683,-155.34386906,0.0001647,2]
[334259697,1722873041692,-1280.43535936,0.000165,2]
[334259698,1722873041702,-6029.98236081,0.00016691,3]
[334259700,1722873041711,-96479.717773,0.00016701,3]
[334259702,1722873041720,-183023.74429059,0.00016711,2]
[334259704,1722873041731,-151.0,0.00016711,2]
[334259706,1722873041740,-151.0,0.00016711,2]
[334259708,1722873041750,-151.0,0.00016711,2]
[334259710,1722873041759,-245.561077,0.00016711,2]
[334259712,1722873041770,-165.49294,0.00016711,2]
[334259714,1722873041779,-165.49294,0.00016711,2]
[334259716,1722873041789,-202.644094,0.00016711,2]
[334259718,1722873041800,-202.644094,0.00016711,2]
[334259720,1722873041810,-151.0,0.00016711,2]
[334259722,1722873041821,-151.0,0.00016711,2]
[334259724,1722873041830,-151.0,0.00016711,2]
[334259726,1722873041839,-190.358682,0.00016711,2]
[334259728,1722873041849,-190.358682,0.00016711,2]
[334259730,1722873041861,-151.0,0.00016711,2]
[334259732,1722873041870,-151.0,0.00016711,2]
[334259734,1722873041879,-151.0,0.00016711,2]
[334259736,1722873041889,-151.0,0.00016711,2]
[334259738,1722873041898,-151.0,0.00016711,2]
[334259740,1722873041908,-151.0,0.00016711,2]
[334259742,1722873041917,-151.0,0.00016711,2]
[334259744,1722873041929,-151.0,0.00016711,2]
[334259746,1722873041939,-151.0,0.00016711,2]
[334259748,1722873041948,-151.0,0.00016711,2]
[334259750,1722873041957,-834.194522,0.00016711,2]
[334259751,1722873041968,-834.194522,0.00016711,2]
[334259753,1722873041978,-151.0,0.00016711,2]
[334259755,1722873041988,-184.409518,0.00016711,2]
[334259758,1722873041999,-184.409518,0.00016711,2]
[334259759,1722873042009,-151.0,0.00016711,2]
[334259761,1722873042019,-151.0,0.00016711,2]
[334259763,1722873042028,-506.113534,0.00016711,2]
[334259765,1722873042038,-172.668099,0.00016711,2]
[334259767,1722873042047,-506.113534,0.00016711,2]
[334259769,1722873042060,-151.0,0.00016711,2]
[334259771,1722873042072,-151.0,0.00016711,2]
[334259773,1722873042081,-162.739692,0.00016711,2]
[334259775,1722873042092,-162.739692,0.00016711,2]
[334259777,1722873042101,-1067.918067,0.00016711,2]
[334259779,1722873042112,-1067.918067,0.00016711,2]
[334259781,1722873042121,-11775.6179212,0.00016789,3]
[334259783,1722873042131,-155.0,0.00016799,2]
[334259785,1722873042140,-6029.98236081,0.00016845,3]
[334259787,1722873042149,-363.95283854,0.00016882,2]
[334259789,1722873042158,-363.95283854,0.00016882,2]
[334259791,1722873042167,-155.0,0.00016882,2]
[334259793,1722873042177,-1000.0,0.00016946,2]
[334259795,1722873042186,-298.46340319,0.00016951,2]
[334259797,1722873042196,-18089.9470824,0.0001699,3]
[334259799,1722873042205,-11775.6179212,0.0001699,3]
[334259801,1722873042214,-921.03072838,0.00016999,2]
[334259803,1722873042224,-35848.45498377,0.00017,2]
[334259805,1722873042233,-151.0,0.00017,2]
[334259807,1722873042243,-1029.0,0.00017,2]
[334259809,1722873042253,-456.04,0.00017155,2]
[334259811,1722873042262,-653.24000473,0.00017259,2]
[334259813,1722873042271,-653.24000473,0.00017259,2]
[334259815,1722873042282,-633.41015136,0.0001738,2]
[334259817,1722873042291,-11775.6179212,0.00017389,3]
[334259819,1722873042300,-164.3003689,0.00017399,2]
[334259821,1722873042310,-304.0,0.00017403,2]
[334259823,1722873042322,-170.25455804,0.00017427,2]
[334259825,1722873042332,-531.93797373,0.00017458,2]
[334259827,1722873042342,-203.28844738,0.00017608,2]
[334259829,1722873042352,-206.64332473,0.00017608,2]
[334259831,1722873042362,-202.77094298,0.00017636,2]
[334259833,1722873042371,-6029.98236081,0.00017772,3]
[334259835,1722873042383,-439.81414465,0.00017799,2]
[334259837,1722873042392,-454.307743,0.00017799,2]
[334259839,1722873042402,-2318.216077,0.00017808,2]
[334259841,1722873042411,-2318.216077,0.00017808,2]
[334259843,1722873042422,-1297.42822882,0.00018,2]
[334259845,1722873042432,-535.25982141,0.00018,2]
[334259847,1722873042441,-203.0,0.0001809,2]
[334259849,1722873042451,-600.38361179,0.00018176,2]
[334259851,1722873042460,-152.0,0.0001827,2]
[334259853,1722873042470,-228.45863801,0.00018471,2]
[334259855,1722873042480,-401.06988909,0.00018471,2]
[334259857,1722873042489,-1000.0,0.00018487,2]
[334259859,1722873042499,-205.81331723,0.00018499,2]
[334259861,1722873042509,-1121.69954399,0.00018499,2]
[334259863,1722873042518,-6029.98236081,0.00018537,3]
[334259865,1722873042528,-306.62294997,0.00018599,2]
[334259867,1722873042537,-171.315,0.00018604,2]
[334259869,1722873042547,-680.44952,0.0001888,2]
[334259871,1722873042556,-304.0,0.00018985,2]
[334259873,1722873042566,-1000.0,0.00019,2]
[334259875,1722873042581,-360.944291,0.00019178,2]
[334259876,1722873042591,-360.944291,0.00019178,2]
[334259878,1722873042602,-155.0,0.00019387,2]
[334259880,1722873042612,-456.04,0.00019419,2]
[334259882,1722873042622,-217.0,0.00019444,2]
[334259884,1722873042631,-203.0,0.0001952,2]
[334259886,1722873042642,-12059.9647216,0.00019534,4]
[334259888,1722873042651,-23551.2358424,0.00019534,4]
[334259890,1722873042660,-6029.98236081,0.00019534,4]
[334259892,1722873042670,-30149.911804,0.00019544,4]
[334259894,1722873042679,-129531.797133,0.00019544,4]
[334259896,1722873042689,-11775.6179212,0.00019544,4]
[334259898,1722873042699,-267723.74006742,0.00019554,2]
[334259900,1722873042709,-151.0,0.00019554,2]
[334259902,1722873042719,-151.0,0.00019554,2]
[334259904,1722873042729,-151.0,0.00019554,2]
[334259906,1722873042739,-151.0,0.00019554,2]
[334259908,1722873042748,-151.0,0.00019554,2]
[334259910,1722873042758,-151.0,0.00019554,2]
[334259912,1722873042767,-151.0,0.00019554,2]
[334259914,1722873042777,-165.49294,0.00019554,2]
[334259916,1722873042786,-165.49294,0.00019554,2]
[334259918,1722873042795,-202.644094,0.00019554,2]
[334259920,1722873042804,-202.644094,0.00019554,2]
[334259922,1722873042814,-151.0,0.00019554,2]
[334259924,1722873042830,-151.0,0.00019554,2]
[334259926,1722873042839,-151.0,0.00019554,2]
[334259928,1722873042854,-225.625574,0.00019554,2]
[334259930,1722873042863,-190.358682,0.00019554,2]
[334259932,1722873042872,-190.358682,0.00019554,2]
[334259934,1722873042882,-151.0,0.00019554,2]
[334259936,1722873042892,-233.896115,0.00019554,2]
[334259939,1722873042901,-233.896115,0.00019554,2]
[334259941,1722873042910,-151.0,0.00019554,2]
[334259943,1722873042920,-200.449673,0.00019554,2]
[334259946,1722873042933,-151.0,0.00019554,2]
[334259948,1722873042941,-513.379401,0.00019554,2]
[334259951,1722873042951,-513.379401,0.00019554,2]
[334259953,1722873042960,-151.0,0.00019554,2]
[334259955,1722873042970,-185.213417,0.00019554,2]
[334259957,1722873042980,-151.0,0.00019554,2]
[334259958,1722873042989,-151.0,0.00019554,2]
[334259960,1722873042999,-525.89479,0.00019554,2]
[334259962,1722873043011,-525.89479,0.00019554,2]
[334259967,1722873043022,-447.532233,0.00019554,2]
[334259969,1722873043031,-447.532233,0.00019554,2]
[334259971,1722873043040,-280.77696,0.00019554,2]
[334259973,1722873043050,-181.956367,0.00019554,2]
[334259976,1722873043060,-151.0,0.00019554,2]
[334259980,1722873043072,-280.77696,0.00019554,2]
[334259982,1722873043082,-181.956367,0.00019554,2]
[334259985,1722873043094,-217.301948,0.00019554,2]
[334259988,1722873043105,-217.301948,0.00019554,2]
[334259991,1722873043116,-151.0,0.00019554,2]
[334259994,1722873043126,-251.428043,0.00019554,2]
[334259997,1722873043136,-228.307641,0.00019554,2]
[334260000,1722873043146,-151.0,0.00019554,2]
[334260003,1722873043156,-228.307641,0.00019554,2]
[334260007,1722873043166,-151.0,0.00019554,2]
[334260010,1722873043176,-151.0,0.00019554,2]
[334260013,1722873043187,-151.0,0.00019554,2]
[334260017,1722873043198,-151.0,0.00019554,2]
[334260019,1722873043208,-203.45181,0.00019554,2]
[334260022,1722873043218,-252.022855,0.00019554,2]
[334260025,1722873043228,-252.022855,0.00019554,2]
[334260028,1722873043238,-151.0,0.00019554,2]
[334260031,1722873043248,-151.0,0.00019554,2]
[334260034,1722873043258,-157.436173,0.00019554,2]
[334260037,1722873043267,-157.436173,0.00019554,2]
[334260040,1722873043277,-151.0,0.00019554,2]
[334260044,1722873043287,-151.0,0.00019554,2]
[334260047,1722873043297,-360.944291,0.00019554,2]
[334260049,1722873043306,-151.0,0.00019554,2]
[334260052,1722873043316,-360.944291,0.00019554,2]
[334260053,1722873043335,-151.0,0.00019554,2]
[334260056,1722873043344,-151.0,0.00019554,2]
[334260059,1722873043354,-176.224569,0.00019554,2]
[334260062,1722873043364,-151.0,0.00019554,2]
[334260064,1722873043374,-151.0,0.00019554,2]
[334260067,1722873043383,-151.0,0.00019554,2]
[334260069,1722873043393,-151.0,0.00019554,2]
[334260072,1722873043404,-834.194522,0.00019554,2]
[334260074,1722873043414,-834.194522,0.00019554,2]
[334260077,1722873043424,-151.0,0.00019554,2]
[334260079,1722873043435,-2318.216077,0.00019554,2]
[334260082,1722873043445,-2318.216077,0.00019554,2]
[334260085,1722873043458,-184.409518,0.00019554,2]
[334260088,1722873043468,-184.409518,0.00019554,2]
[334260091,1722873043478,-151.0,0.00019554,2]
[334260093,1722873043489,-151.0,0.00019554,2]
[334260096,1722873043499,-506.113534,0.00019554,2]
[334260098,1722873043510,-506.113534,0.00019554,2]
[334260102,1722873043521,-239.356272,0.00019554,2]
[334260105,1722873043531,-151.0,0.00019554,2]
[334260107,1722873043543,-162.739692,0.00019554,2]
[334260110,1722873043554,-162.739692,0.00019554,2]
[334260113,1722873043564,-1067.918067,0.00019554,2]
[334260116,1722873043582,-1067.918067,0.00019554,2]
[334260118,1722873043592,-200.0,0.00019573,2]
[334260121,1722873043604,-200.0,0.00019573,2]
[334260124,1722873043616,-385.9,0.000196,7]
[334260127,1722873043626,-357.0,0.000198,2]
[334260130,1722873043638,-1000.0,0.000198,2]
[334260132,1722873043648,-11775.6179212,0.0001998,4]
[334260134,1722873043659,-11775.6179212,0.0001999,4]
[334260136,1722873043669,-465.16956019,0.00019999,2]
[334260139,1722873043679,-155.0,0.0002,2]
[334260141,1722873043690,-6290.2745887,0.0002,2]
[334260143,1722873043701,-17826.63863775,0.0002,2]
[334260145,1722873043710,-429.16161175,0.0002,2]
[334260147,1722873043720,-625.8586866,0.0002,2]
[334260149,1722873043731,-1000.0,0.0002,2]
[334260151,1722873043742,-151.0,0.0002,2]
[334260153,1722873043752,-151.0,0.0002,2]
[334260155,1722873043763,-151.0,0.0002,2]
[334260157,1722873043773,-839.05446149,0.0002,2]
[334260159,1722873043783,-250.0,0.0002,2]
[334260161,1722873043793,-200.0,0.0002,2]
[334260163,1722873043803,-151.0,0.0002,2]
[334260165,1722873043814,-204.757337,0.0002,2]
[334260167,1722873043824,-204.757337,0.0002,2]
[334260169,1722873043834,-151.0,0.0002,2]
[334260171,1722873043844,-151.0,0.0002,2]
[334260173,1722873043854,-151.0,0.0002,2]
[334260175,1722873043864,-521.433248,0.0002,2]
[334260177,1722873043873,-521.433248,0.0002,2]
[334260179,1722873043883,-597.760281,0.0002,2]
[334260181,1722873043893,-213.339908,0.0002,2]
[334260183,1722873043903,-597.760281,0.0002,2]
[334260185,1722873043912,-151.0,0.0002,2]
[334260187,1722873043923,-151.0,0.0002,2]
[334260188,1722873043936,-1234.47373,0.0002,2]
[334260189,1722873043947,-1234.47373,0.0002,2]
[334260190,1722873043956,-242.791145,0.0002,2]
[334260191,1722873043966,-242.791145,0.0002,2]
[334260192,1722873043977,-151.0,0.0002,2]
[334260193,1722873043987,-151.0,0.0002,2]
[334260194,1722873043996,-1303.680173,0.0002,2]
[334260195,1722873044008,-1303.680173,0.0002,2]
[334260196,1722873044021,-151.0,0.0002,2]
[334260197,1722873044031,-151.0,0.0002,2]
[334260198,1722873044041,-1405.19425176,0.00020191,2]
[334260199,1722873044051,-500.0,0.00020288,2]
[334260200,1722873044061,-259.03,0.00020447,2]
[334260201,1722873044076,-500.0,0.00020542,2]
[334260203,1722873044086,-535.64088937,0.00020588,2]
[334260205,1722873044095,-500.0,0.00020631,2]
[334260207,1722873044109,-728.78640467,0.00020779,2]
[334260209,1722873044119,-154.17,0.00020807,2]
[334260211,1722873044130,-370.35938797,0.00020831,2]
[334260213,1722873044139,-400.0,0.00020942,2]
[334260215,1722873044149,-400.0,0.00020942,2]
[334260217,1722873044159,-203.0,0.0002095,2]
[334260219,1722873044169,-160.42287042,0.00020999,2]
[334260221,1722873044179,-328.13760971,0.00021,2]
[334260223,1722873044189,-170.25455804,0.00021163,2]
[334260225,1722873044199,-680.44951,0.0002138,2]
[334260227,1722873044209,-6857.72,0.00021589,30]
[334260229,1722873044221,-456.04,0.00021683,2]
[334260231,1722873044232,-11775.6179212,0.00021761,4]
[334260233,1722873044241,-58878.0896061,0.00021771,4]
[334260235,1722873044251,-500.0,0.00021781,2]
[334260237,1722873044261,-500.0,0.00021781,2]
[334260239,1722873044271,-500.0,0.00021781,2]
[334260241,1722873044281,-500.0,0.00021781,2]
[334260244,1722873044291,-500.0,0.00021781,2]
[334260246,1722873044300,-500.0,0.00021781,2]
[334260248,1722873044310,-500.0,0.00021781,2]
[334260250,1722873044326,-500.0,0.00021781,2]
[334260252,1722873044336,-500.0,0.00021781,2]
[334260254,1722873044346,-500.0,0.00021781,2]
[334260256,1722873044356,-500.0,0.00021781,2]
[334260258,1722873044366,-500.0,0.00021781,2]
[334260259,1722873044375,-500.0,0.00021781,2]
[334260261,1722873044385,-500.0,0.00021781,2]
[334260264,1722873044396,-500.0,0.00021781,2]
[334260266,1722873044405,-500.0,0.00021781,2]
[334260267,1722873044415,-500.0,0.00021781,2]
[334260269,1722873044425,-500.0,0.00021781,2]
[334260271,1722873044435,-500.0,0.00021781,2]
[334260274,1722873044445,-500.0,0.00021781,2]
[334260276,1722873044456,-500.0,0.00021781,2]
[334260278,1722873044466,-500.0,0.00021781,2]
[334260280,1722873044475,-500.0,0.00021781,2]
[334260281,1722873044486,-500.0,0.00021781,2]
[334260284,1722873044496,-500.0,0.00021781,2]
[334260285,1722873044506,-500.0,0.00021781,2]
[334260287,1722873044515,-500.0,0.00021781,2]
[334260289,1722873044525,-500.0,0.00021781,2]
[334260291,1722873044535,-500.0,0.00021781,2]
[334260293,1722873044545,-500.0,0.00021781,2]
[334260295,1722873044555,-500.0,0.00021781,2]
[334260297,1722873044565,-500.0,0.00021781,2]
[334260299,1722873044579,-500.0,0.00021781,2]
[334260301,1722873044588,-500.0,0.00021781,2]
[334260304,1722873044601,-500.0,0.00021781,2]
[334260306,1722873044612,-500.0,0.00021781,2]
[334260308,1722873044622,-500.0,0.00021781,2]
[334260310,1722873044633,-500.0,0.00021781,2]
[334260312,1722873044643,-500.0,0.00021781,2]
[334260314,1722873044654,-500.0,0.00021781,2]
[334260316,1722873044664,-500.0,0.00021781,2]
[334260318,1722873044674,-500.0,0.00021781,2]
[334260320,1722873044684,-500.0,0.00021781,2]
[334260322,1722873044694,-500.0,0.00021781,2]
[334260324,1722873044705,-500.0,0.00021781,2]
[334260326,1722873044714,-500.0,0.00021781,2]
[334260328,1722873044724,-500.0,0.00021781,2]
[334260330,1722873044734,-500.0,0.00021781,2]
[334260332,1722873044744,-500.0,0.00021781,2]
[334260334,1722873044754,-500.0,0.00021781,2]
[334260336,1722873044766,-500.0,0.00021781,2]
[334260338,1722873044775,-500.0,0.00021781,2]
[334260339,1722873044784,-500.0,0.00021781,2]
[334260340,1722873044794,-500.0,0.00021781,2]
[334260341,1722873044803,-500.0,0.00021781,2]
[334260342,1722873044813,-500.0,0.00021781,2]
[334260343,1722873044826,-500.0,0.00021781,2]
[334260344,1722873044835,-500.0,0.00021781,2]
[334260345,1722873044848,-500.0,0.00021781,2]
[334260346,1722873044858,-500.0,0.00021781,2]
[334260347,1722873044867,-500.0,0.00021781,2]
[334260348,1722873044877,-500.0,0.00021781,2]
[334260349,1722873044886,-500.0,0.00021781,2]
[334260350,1722873044896,-500.0,0.00021781,2]
[334260351,1722873044905,-500.0,0.00021781,2]
[334260352,1722873044915,-500.0,0.00021781,2]
[334260353,1722873044925,-500.0,0.00021781,2]
[334260354,1722873044938,-500.0,0.00021781,2]
[334260355,1722873044948,-500.0,0.00021781,2]
[334260356,1722873044958,-500.0,0.00021781,2]
[334260357,1722873044968,-500.0,0.00021781,2]
[334260358,1722873044979,-500.0,0.00021781,2]
[334260359,1722873044989,-500.0,0.00021781,2]
[334260360,1722873044999,-500.0,0.00021781,2]
[334260361,1722873045012,-500.0,0.00021781,2]
[334260362,1722873045021,-500.0,0.00021781,2]
[334260363,1722873045032,-500.0,0.00021781,2]
[334260364,1722873045042,-500.0,0.00021781,2]
[334260365,1722873045052,-500.0,0.00021781,2]
[334260366,1722873045062,-500.0,0.00021781,2]
[334260367,1722873045075,-500.0,0.00021781,2]
[334260368,1722873045085,-500.0,0.00021781,2]
[334260369,1722873045099,-500.0,0.00021781,2]
[334260370,1722873045108,-500.0,0.00021781,2]
[334260371,1722873045117,-500.0,0.00021781,2]
[334260372,1722873045127,-500.0,0.00021781,2]
[334260373,1722873045136,-500.0,0.00021781,2]
[334260374,1722873045146,-500.0,0.00021781,2]
[334260375,1722873045156,-500.0,0.00021781,2]
[334260376,1722873045165,-500.0,0.00021781,2]
[334260377,1722873045174,-500.0,0.00021781,2]
[334260378,1722873045184,-500.0,0.00021781,2]
[334260379,1722873045194,-500.0,0.00021781,2]
[334260380,1722873045203,-500.0,0.00021781,2]
[334260382,1722873045212,-500.0,0.00021781,2]
[334260383,1722873045221,-500.0,0.00021781,2]
[334260385,1722873045230,-500.0,0.00021781,2]
[334260387,1722873045240,-500.0,0.00021781,2]
[334260389,1722873045249,-500.0,0.00021781,2]
[334260391,1722873045259,-500.0,0.00021781,2]
[334260393,1722873045269,-500.0,0.00021781,2]
[334260395,1722873045280,-500.0,0.00021781,2]
[334260397,1722873045290,-500.0,0.00021781,2]
[334260399,1722873045300,-500.0,0.00021781,2]
[334260401,1722873045310,-500.0,0.00021781,2]
[334260403,1722873045323,-500.0,0.00021781,2]
[334260405,1722873045333,-500.0,0.00021781,2]
[334260407,1722873045346,-500.0,0.00021781,2]
[334260409,1722873045355,-500.0,0.00021781,2]
[334260411,1722873045365,-500.0,0.00021781,2]
[334260413,1722873045375,-500.0,0.00021781,2]
[334260415,1722873045387,-500.0,0.00021781,2]
[334260417,1722873045398,-500.0,0.00021781,2]
[334260451,1722873045736,-500.0,0.00021781,2]
[334260453,1722873045747,-500.0,0.00021781,2]
[334260455,1722873045758,-500.0,0.00021781,2]
[334260458,1722873045768,-500.0,0.00021781,2]
[334260460,1722873045778,-500.0,0.00021781,2]
[334260462,1722873045789,-500.0,0.00021781,2]
[334260463,1722873045799,-500.0,0.00021781,2]
[334260466,1722873045809,-500.0,0.00021781,2]
[334260468,1722873045823,-500.0,0.00021781,2]
[334260469,1722873045833,-500.0,0.00021781,2]
[334260473,1722873045842,-500.0,0.00021781,2]
[334260479,1722873045852,-500.0,0.00021781,2]
[334260482,1722873045863,-500.0,0.00021781,2]
[334260487,1722873045873,-500.0,0.00021781,2]
[334260493,1722873045883,-500.0,0.00021781,2]
[334260497,1722873045893,-500.0,0.00021781,2]
[334260502,1722873045904,-500.0,0.00021781,2]
[334260507,1722873045916,-500.0,0.00021781,2]
[334260513,1722873045930,-500.0,0.00021781,2]
[334260518,1722873045941,-500.0,0.00021781,2]
[334260522,1722873045950,-500.0,0.00021781,2]
[334260525,1722873045960,-500.0,0.00021781,2]
[334260528,1722873045971,-500.0,0.00021781,2]